Cogmind - Beta 14 @@@ ROGUE MODE // 2024.10.31 @ 02:08:42 Player: Gabe+Kate4EVR Result: Destroyed by Y-54 Guardian with Gatling Laser Performance ------------- Evolutions (3) 1500 Regions Visited (6) 1200 Robots Destroyed (41) 205 Value Destroyed (1398) 1398 Prototype IDs (26) 520 Alien Tech Used (0) 0 Bonus (498) 498 TOTAL SCORE: 5321 Bonus ------- Follower Combat Kills 207 Aligned with FarCom 300 Friendly Fire -9 Cogmind --------- Core Integrity 0/700 Matter 142/300 Energy 100/100 System Corruption 26% Temperature Critical (544) Movement Core (700) Ox13 Location -7/Factory Parts ------- > --- POWER (1) -------- (None) > --- PROPULSION (4) --- (None) > --- UTILITY (2) ------ High-capacity Storage Unit > --- WEAPON (6) ------- (None) > --- INVENTORY (20) --- Armored Treads Carbon-fiber Leg Carbon-fiber Leg Titanium Leg Compact Wheel Airjet Airjet Airjet Power Amplifier High-capacity Matter Pod (200) Visual Processing Unit Improved Signal Interpreter Hardened Medium Armor Plating Shock Rifle Precision Shock Rifle Gatling Laser Improved EM Pulse Cannon XL Autogun Subcomponent Axe Spear Peak State ------------ > --- POWER ------------ Heavy Deuterium Engine > --- PROPULSION ------- Carbon-fiber Leg Carbon-fiber Leg Titanium Leg Titanium Leg > --- UTILITY ---------- High-capacity Storage Unit Hardened Medium Armor Plating > --- WEAPON ----------- XL Autogun Array Advanced Assault Cannon Advanced Assault Cannon > --- INVENTORY -------- Light Nuclear Core Armored Treads Improved Aluminum Leg Carbon-fiber Leg Airjet Airjet Airjet Improved Heat Sink High-capacity Matter Pod Visual Processing Unit Improved Signal Interpreter Hardened Medium Armor Plating Precision Shock Rifle Gatling Laser Improved EM Pulse Cannon Flak Cannon Advanced Assault Cannon Advanced Assault Cannon Axe Spear [Rating: 71] Favorites ----------- Power Ion Engine Engine Ion Engine Power Core Light Nuclear Core Propulsion Aluminum Leg Treads Improved Treads Leg Aluminum Leg Utility High-capacity Storage Unit Device Sensor Array Storage High-capacity Storage Unit Protection Improved Propulsion Shielding Weapon Advanced Assault Cannon Energy Gun EM Pulse Gun Ballistic Gun XL Autogun Array Ballistic Cannon Advanced Assault Cannon Launcher Advanced EMP Blaster Build | -11 -10 -10 -10 -9 -8 -7 ------- Run | Yrd Mat Min Exi Min Mat Fac Slots Evolved 6 | . . . . . 4 2 Power . | . . . . . . . Propulsion 2 | . . . . . 2 . Utility . | . . . . . . . Weapon 4 | . . . . . 2 2 Parts Attached 51 | 6 1 . 1 . 22 21 Power 6 | 1 . . . . 3 2 Engine 4 | 1 . . . . 1 2 Core 2 | . . . . . 2 . Reactor . | . . . . . . . Propulsion 20 | 2 . . . . 12 6 Treads 4 | . . . . . 3 1 Leg 16 | 2 . . . . 9 5 Wheel . | . . . . . . . Hover . | . . . . . . . Flight . | . . . . . . . Utility 9 | 1 1 . 1 . 2 4 Device 3 | . 1 . . . . 2 Storage 2 | 1 . . 1 . . . Processor . | . . . . . . . Hackware . | . . . . . . . Protection 4 | . . . . . 2 2 Artifact . | . . . . . . . Weapon 16 | 2 . . . . 5 9 Energy Gun 2 | 2 . . . . . . Energy Cannon . | . . . . . . . Ballistic Gun 8 | . . . . . 4 4 Ballistic Cannon 5 | . . . . . . 5 Launcher 1 | . . . . . 1 . Special Weapon . | . . . . . . . Impact Weapon . | . . . . . . . Slashing Weapon . | . . . . . . . Piercing Weapon . | . . . . . . . Special Melee Weapon . | . . . . . . . Unidentified Prototypes 3 | . . . . . 1 2 Parts Lost 21 | . . 2 . . . 19 Power 2 | . . . . . . 2 Propulsion 7 | . . . . . . 7 Utility 2 | . . . . . . 2 Weapon 10 | . . 2 . . . 8 Highest Loss Streak 12 | . . 2 . . . 12 To Critical Strikes . | . . . . . . . Average Slot Usage (%) 73 | . 92 82 71 71 69 79 Engine 8 | . 14 14 14 14 5 3 Core 2 | . . . . . 3 3 Leg 29 | . 28 28 28 28 32 29 Device 5 | . 7 14 14 14 . . Storage 10 | . 14 14 14 14 9 7 Protection 4 | . . . . . 8 4 Energy Gun 1 | . 28 11 . . . . Ballistic Gun 5 | . . . . . 8 11 Ballistic Cannon 4 | . . . . . . 15 Peak Build Rating 71 | 6 7 7 9 9 61 71 Average Rating 36 | 4 6 5 8 9 52 62 On Entrance 13 | . 6 7 5 9 9 61 Naked Turns . | . . . . . . . Heaviest Build 86 | 14 15 15 46 46 63 86 Greatest Support 64 | 20 20 20 20 20 64 64 Greatest Overweight (x) 2 | 2 . . 2 2 2 2 Average Overweight (x) . | . . . 1 2 . 1 Largest Inventory Capacity 20 | 8 8 8 20 20 20 20 Average Capacity 18 | 6 8 8 17 20 20 20 Most Carried 20 | 2 4 5 8 8 20 20 Average Carried 13 | 1 3 4 7 8 17 19 Final Capacity 20 | 8 8 8 20 20 20 20 Final Carried 20 | 2 4 5 8 8 20 20 Class Distribution -------------------- 45% | Mutant 22% | Skirmisher 11% | Commander-Executioner 10% | Scavenger-Skirmisher 6% | Executioner 3% | Scavenger-Executioner Dominant Class ---------------- Mutant | -10/Materials Mutant | -10/Mines Mutant | -10/Exiles Mutant | -9/Mines Skirmisher | -8/Materials Commander-Executioner | -7/Factory Resources | -11 -10 -10 -10 -9 -8 -7 ----------- Run | Yrd Mat Min Exi Min Mat Fac Matter Collected 1870 | 213 . 47 . . 738 872 Remotely . | . . . . . . . Salvage Created 1772 | . 157 . . . 896 719 Parts 100 | . 10 . . . 51 39 Haulers Intercepted 5 | . . . . . 4 1 Recyclers Shooed . | . . . . . . . Parts Field Recycled . | . . . . . . . Retrieved Matter . | . . . . . . . Parts Self-Destructed . | . . . . . . . Prevented . | . . . . . . . Kills | -11 -10 -10 -10 -9 -8 -7 ------- Run | Yrd Mat Min Exi Min Mat Fac Combat Hostiles Destroyed 25 | . 2 . . . 10 13 Guns 18 | . 2 . . . 10 6 Cannons 7 | . . . . . . 7 Classes Destroyed 12 | . 3 . . . 5 4 Worker 1 | . . . . . . 1 Builder 3 | . . . . . 1 2 Hauler 5 | . . . . . 4 1 Recycler 3 | . 1 . . . 1 1 Watcher 4 | . 2 . . . 2 . Swarmer 2 | . 2 . . . . . Grunt 9 | . . . . . 7 2 Protector 1 | . . . . . . 1 Sentry 3 | . . . . . 2 1 Specialist 3 | . . . . . . 3 Hunter 4 | . . . . . 1 3 Programmer 3 | . . . . . . 3 Best Kill Streak 10 | . 5 . . . 4 10 Combat Bots Only 9 | . 2 . . . 3 9 Max Kills in Single Turn 2 | . 1 . . . 2 2 Gunslinging . | . . . . . . . Exploded . | . . . . . . . Melee . | . . . . . . . Uniques/NPCs Destroyed . | . . . . . . . Combat | -11 -10 -10 -10 -9 -8 -7 -------- Run | Yrd Mat Min Exi Min Mat Fac Hostile Shots Fired 272 | . 10 1 . . 26 235 Missed 68 | . 2 1 . . 8 57 Damage Taken 4333 | . 66 137 . . 286 3844 Core 742 | . 7 . . . 28 707 Absorbed by Shields . | . . . . . . . Redirected to Shielding 28 | . . . . . 28 . Core Remaining (%) 97 | 100 . . . 97 94 . Volleys Fired 84 | . 11 1 . . 36 36 Largest 6 | . 2 2 . . 1 6 Hottest 200 | . 80 80 . . 60 200 Shots Fired 200 | . 22 2 . . 36 140 Gun 136 | . 22 2 . . 36 76 Cannon 64 | . . . . . . 64 Launcher . | . . . . . . . Special . | . . . . . . . Kinetic 176 | . . . . . 36 140 Thermal . | . . . . . . . Explosive . | . . . . . . . Electromagnetic 24 | . 22 2 . . . . Robot Hit Streak 10 | . 5 1 . . 9 10 Robot Miss Streak 9 | . 6 1 . . 4 9 Penetration Max . | . . . . . . . Secondary Targets . | . . . . . . . Shots Hit Robots 113 | . 9 1 . . 30 73 Core Hits 75 | . 5 1 . . 26 43 Critical Kills . | . . . . . . . Critical Parts Destroyed . | . . . . . . . Critical Strikes 1 | . . . . . . 1 Blast 1 | . . . . . . 1 Melee Attacks . | . . . . . . . Impact . | . . . . . . . Slashing . | . . . . . . . Piercing . | . . . . . . . Sneak Attacks . | . . . . . . . Combat Hostiles . | . . . . . . . Follow-up Attacks . | . . . . . . . Damage Inflicted 3859 | . 130 16 . . 1681 2032 Guns 2937 | . 130 16 . . 1681 1110 Cannons 881 | . . . . . . 881 Explosions . | . . . . . . . Melee . | . . . . . . . Ramming 41 | . . . . . . 41 Kinetic 3672 | . . . . . 1681 1991 Thermal . | . . . . . . . Explosive . | . . . . . . . Electromagnetic 146 | . 130 16 . . . . Impact . | . . . . . . . Slashing . | . . . . . . . Piercing . | . . . . . . . Highest Corruption 26 | . . . . . . 26 Average Corruption 4 | . . . . . . 4 Corruption Purged . | . . . . . . . Corruption Blocked . | . . . . . . . Effects 8 | . . . . . . 8 Matter Fused 1 | . . . . . . 1 Heat Flow Errors 2 | . . . . . . 2 Energy Discharges 1 | . . . . . . 1 Data Loss (minor) 2 | . . . . . . 2 Misfires 1 | . . . . . . 1 Weapon Failures 1 | . . . . . . 1 Overload Shots . | . . . . . . . Overflow Damage . | . . . . . . . Projectiles . | . . . . . . . Explosions . | . . . . . . . Melee . | . . . . . . . Knockbacks 9 | . . . . . . 9 Impact . | . . . . . . . Kinetic 8 | . . . . . . 8 Secondary 1 | . . . . . . 1 Self-Inflicted Damage . | . . . . . . . Shots . | . . . . . . . Rammed . | . . . . . . . Targets Rammed 6 | . . . . . . 6 Kicked 6 | . . . . . . 6 Crushed . | . . . . . . . Highest Temperature 602 | . 90 18 . . 230 602 Average Temperature 153 | . 32 12 . . 74 220 Received Heat Transfer 447 | . . . . . 99 348 Effects 25 | . . . . . 1 24 Shutdowns 3 | . . . . . . 3 Energy Bleed 6 | . . . . . . 6 Interference 5 | . . . . . 1 4 Matter Decay 1 | . . . . . . 1 Short Circuit 1 | . . . . . . 1 Damage (minor) 2 | . . . . . . 2 Damage (major) 5 | . . . . . . 5 Damage (core) 2 | . . . . . . 2 Siege Activations . | . . . . . . . Robots Corrupted . | . . . . . . . Combat Hostiles . | . . . . . . . Parts Fried . | . . . . . . . Impact Corruptions . | . . . . . . . Robots Melted . | . . . . . . . Combat Hostiles . | . . . . . . . Parts Melted . | . . . . . . . Heat Transferred . | . . . . . . . Parts Sabotaged . | . . . . . . . Parts Stolen . | . . . . . . . Parts Stripped . | . . . . . . . Power Chain Reactions . | . . . . . . . Alert | -11 -10 -10 -10 -9 -8 -7 ------- Run | Yrd Mat Min Exi Min Mat Fac Peak Influence 217 | . 144 55 . . 193 217 Initial 55 | . . 55 . . . . Average 81 | . 100 43 . . 76 102 Maximum Alert Level 1 | . . . . . . 1 Low Security (%) 97 | 100 100 100 . 100 100 93 Level 1 2 | . . . . . . 6 Level 2 . | . . . . . . . Level 3 . | . . . . . . . Level 4 . | . . . . . . . Level 5 . | . . . . . . . High Security . | . . . . . . . Max Security . | . . . . . . . Squads Dispatched 5 | . . . . . . 5 Investigation . | . . . . . . . Extermination 1 | . . . . . . 1 Reinforcement 4 | . . . . . . 4 Assault . | . . . . . . . Garrison . | . . . . . . . Intercept . | . . . . . . . Searches Triggered . | . . . . . . . Construction Impeded 1 | . . . . . . 1 Haulers Reinforced 1 | . . . . . . 1 Active Scanning Responses . | . . . . . . . Cargo Convoy Interrupts 1 | . . . . . . 1 Stealth | -11 -10 -10 -10 -9 -8 -7 --------- Run | Yrd Mat Min Exi Min Mat Fac Distress Signals 3 | . . . . . 1 2 Communications Jammed . | . . . . . . . Distress Signals . | . . . . . . . Times Spotted 69 | . 6 7 . . 15 41 Peak Tracking Total 12 | . 4 3 . . 2 12 Tactical Retreats 2 | . 1 . . . . 1 Traps | -11 -10 -10 -10 -9 -8 -7 ------- Run | Yrd Mat Min Exi Min Mat Fac Traps Triggered 1 | . . . . . . 1 Indirectly . | . . . . . . . Trap Hack Attempts . | . . . . . . . Triggered . | . . . . . . . Disarmed . | . . . . . . . Reprogrammed . | . . . . . . . Reused . | . . . . . . . Traps Extracted . | . . . . . . . Installed . | . . . . . . . Triggered . | . . . . . . . Machines | -11 -10 -10 -10 -9 -8 -7 ---------- Run | Yrd Mat Min Exi Min Mat Fac Machines Disabled 7 | . 2 . . . 4 1 Max in Single Turn 1 | . 1 . . . 1 1 Machines Repaired . | . . . . . . . Machines Dismantled . | . . . . . . . Machines Sabotaged . | . . . . . . . Overloaded Fab Kills . | . . . . . . . Hacking | -11 -10 -10 -10 -9 -8 -7 --------- Run | Yrd Mat Min Exi Min Mat Fac Machines Accessed 4 | . . . 1 . 2 1 Terminals 3 | . . . . . 2 1 Fabricators . | . . . . . . . Repair Stations . | . . . . . . . Recycling Units . | . . . . . . . Scanalyzers . | . . . . . . . Garrison Access . | . . . . . . . Total Hacks 6 | . . . 1 . 4 1 Successful 3 | . . . 1 . 1 1 Failed 3 | . . . . . 3 . Catastrophic 1 | . . . . . 1 . Database Lockouts . | . . . . . . . Manual 6 | . . . 1 . 4 1 Terminals 5 | . . . . . 4 1 Fabricators . | . . . . . . . Repair Stations . | . . . . . . . Recycling Units . | . . . . . . . Scanalyzers . | . . . . . . . Garrison Access . | . . . . . . . Terminal Hacks 2 | . . . 1 . 1 . Unreport Threat 1 | . . . . . 1 . Derelict Proto ID Bank 1 | . . . 1 . . . Fabricator Hacks . | . . . . . . . Repair Station Hacks . | . . . . . . . Recycling Unit Hacks . | . . . . . . . Scanalyzer . | . . . . . . . Garrison Access Hacks . | . . . . . . . Unauthorized Hacks 1 | . . . . . . 1 Terminals 1 | . . . . . . 1 Assimilate 1 | . . . . . . 1 Fabricators . | . . . . . . . Repair Stations . | . . . . . . . Recycling Units . | . . . . . . . Scanalyzers . | . . . . . . . Garrison Access . | . . . . . . . Data Cores Recovered . | . . . . . . . Used . | . . . . . . . Hacking Detections . | . . . . . . . Full Trace Events . | . . . . . . . Feedback Events . | . . . . . . . Feedback Blocked . | . . . . . . . Robot Schematics Acquired . | . . . . . . . Robots Built . | . . . . . . . Authchips . | . . . . . . . Time . | . . . . . . . Total Robot Build Rating . | . . . . . . . Part Schematics Acquired . | . . . . . . . Parts Built . | . . . . . . . Authchips . | . . . . . . . Time . | . . . . . . . Total Part Build Rating . | . . . . . . . Parts Repaired . | . . . . . . . Time . | . . . . . . . Parts Recycled . | . . . . . . . Recycled Matter . | . . . . . . . Retrieved Matter . | . . . . . . . Retrieved Components . | . . . . . . . Parts Scanalyzed . | . . . . . . . Part Schematics Acquired . | . . . . . . . Parts Damaged . | . . . . . . . Bothacking | -11 -10 -10 -10 -9 -8 -7 ------------ Run | Yrd Mat Min Exi Min Mat Fac Used RIF Installer . | . . . . . . . Robots Hacked . | . . . . . . . Non-combat . | . . . . . . . Combat . | . . . . . . . Robot Hacks Applied . | . . . . . . . Relay Couplers Released . | . . . . . . . Fabnet Peak Effective % . | . . . . . . . Robots Rewired 7 | . . . . . . 7 Allies Hacked 1 | . . . . . . 1 Hacks Repelled . | . . . . . . . Allies | -11 -10 -10 -10 -9 -8 -7 -------- Run | Yrd Mat Min Exi Min Mat Fac Total Allies 8 | . . . . . . 8 Largest Group 7 | . . . . . . 7 Highest-Rated Group 167 | . . . . . . 167 Highest-Rated Ally 32 | . . . . . . 32 Total Orders . | . . . . . . . Ally Attacks 44 | . . . . . . 44 Total Damage 1138 | . . . . . . 1138 Kills 10 | . . . . . . 10 Allies Corrupted . | . . . . . . . Allies Melted . | . . . . . . . Intel | -11 -10 -10 -10 -9 -8 -7 ------- Run | Yrd Mat Min Exi Min Mat Fac Robot Analysis Total . | . . . . . . . Derelict Logs Recovered . | . . . . . . . Drone Launches . | . . . . . . . Drone Recoveries . | . . . . . . . Exploration | -11 -10 -10 -10 -9 -8 -7 ------------- Run | Yrd Mat Min Exi Min Mat Fac Turns Passed 4856 | 70 139 220 1544 58 1618 1207 Spaces Moved 2182 | 52 82 155 727 23 683 460 Core 10 | 10 . . . . . . Treads . | . . . . . . . Legs 2172 | 42 82 155 727 23 683 460 Wheels . | . . . . . . . Hover . | . . . . . . . Flight . | . . . . . . . Fastest Speed 50 | 50 120 120 120 260 125 185 Average Speed 182 | 114 120 120 212 260 168 192 Slowest Speed 266 | 150 120 120 260 260 260 266 Overloaded Moves . | . . . . . . . Propulsion Burnouts . | . . . . . . . Robots Hopped . | . . . . . . . Cave-ins Triggered 2 | . . . . . . 2 Exploration Rate (%) 33 | 4 27 53 90 15 37 11 Regions Visited 6 Branch Regions 3 Pre-discovered Areas . | . . . . . . . Known Exits Taken . | . . . . . . . Unknown Exits Taken 6 | 1 1 1 1 1 1 . Scrap Searched 1 | . . 1 . . . . Spaces Dug 3 | . . . . . 3 . Terrain Destroyed 65 | . . . . . 46 19 Melee . | . . . . . . . Projectile 65 | . . . . . 46 19 AOE . | . . . . . . . Terrain Rammed . | . . . . . . . Walls Destroyed . | . . . . . . . Machines Disabled . | . . . . . . . Actions | -11 -10 -10 -10 -9 -8 -7 --------- Run | Yrd Mat Min Exi Min Mat Fac Total 2994 | 59 100 187 730 22 1165 731 Wait 534 | . 5 31 . . 377 121 Move 2176 | 51 81 154 726 22 682 460 Hop . | . . . . . . . Pick Up 42 | 2 2 1 1 . 24 12 Fast Attach 21 | 6 1 . . . 6 8 Attach 12 | . . . . . 3 9 Detach 4 | . . . . . 3 1 Swap 18 | . . . 1 . 13 4 Drop 32 | . . . 2 . 21 9 Fire 84 | . 11 1 . . 36 36 Melee . | . . . . . . . Ram . | . . . . . . . Kick 6 | . . . . . . 6 Crush . | . . . . . . . Escape Stasis . | . . . . . . . Rewire 65 | . . . . . . 65 Trap . | . . . . . . . Miscellaneous . | . . . . . . . Route ------- -11/Scrapyard -10/Materials -10/Mines -10/Exiles (discovered 2 exits: [*Min x2]) -9/Mines -8/Materials -7/Factory History --------- Turn | Location | Event 5 | -11/Scrapyard | Discovered new exit (range 16) 71 | -11/Scrapyard | Entered Materials 170 | -10/Materials | Met 8R-AWN 202 | -10/Materials | Discovered new exit (range 8) 210 | -10/Materials | Entered Mines 211 | -10/Mines | Followed 8R-AWN into the Mines 250 | -10/Mines | Assembled infested the area 255 | -10/Mines | Assisted by a Guerilla fighting off Assembled 300 | -10/Mines | Build established: Mutant 418 | -10/Mines | Received a Rocket Launcher from a helpful Derelict 425 | -10/Mines | Discovered new exit (range 5) 430 | -10/Mines | Entered Exiles 460 | -10/Exiles | Welcomed by 8R-AWN 480 | -10/Exiles | Met EX-HEX 528 | -10/Exiles | Met EX-DEC 558 | -10/Exiles | Met EX-BIN 572 | -10/Exiles | Aligned with FarCom system 573 | -10/Exiles | Given EX-Vault access code 602 | -10/Exiles | Opened EX-Vault 616 | -10/Exiles | Found XL Autogun Array 647 | -10/Exiles | Warned to stay clear of 0b10 Research branches 943 | -10/Exiles | Visited The Gauntlet 1508 | -10/Exiles | Learned about 8R-AWN's background 1573 | -10/Exiles | Discovered new exit (range 14) 1940 | -10/Exiles | Discovered new exit (range 15) 1974 | -10/Exiles | Left Exiles lab with XL Autogun Array 1974 | -10/Exiles | Entered Mines 1993 | -9/Mines | Discovered new exit (range 16) 2032 | -9/Mines | Entered Materials 2032 | -8/Materials | Evolved 4 slots: Propulsion x2, Weapon x2 2499 | -8/Materials | Build established: Scavenger-Skirmisher 3063 | -8/Materials | Build established: Skirmisher 3300 | -8/Materials | Discovered new exit (range 16) 3650 | -8/Materials | Entered Factory 3650 | -7/Factory | Evolved 2 slots: Weapon x2 4145 | -7/Factory | Build established: Commander-Executioner 4424 | -7/Factory | Cargo convoy interrupted 4468 | -7/Factory | Lost 5 allies 4551 | -7/Factory | Destroyed 9 combat bots 4557 | -7/Factory | Lost 7 parts (1p3n1u2w) 4844 | -7/Factory | Crushed by falling debris 4844 | -7/Factory | System corruption reached 10% 4850 | -7/Factory | Core integrity fell below 50% 4852 | -7/Factory | Core integrity fell below 20% 4853 | -7/Factory | Crushed by falling debris 4857 | -7/Factory | Destroyed by Y-54 Guardian with Gatling Laser Last Messages --------------- 04852_ Overheating: Core damaged (-126). 04853_ Power failure, Hvy. Deuterium Engine shutdown. 04853_ Overheating: System interference. 04853_ Flak Cannon temporarily disabled. 04853_ XL Autogun Subcomponent temporarily disabled. 04853_ The unstable cave ceiling collapses. 04853_ Crushed by falling debris. 04853_ VSS Leg destroyed. 04853_ System corrupted by crushing effect (+3). 04853_ Flak Cannon destroyed. 04853_ System corrupted by crushing effect (+4). 04853_ Imp. Aluminum Leg destroyed. 04853_ System corrupted by crushing effect (+5). 04853_ XL Autogun Subcomponent destroyed. 04853_ Adv. Assault Cannon destroyed. 04854_ Acquired 17 matter. 04855_ U-05 Engineer builds a Wall. 04856_ Overheating: Energy bleed (-71). 04856_ Hvy. Deuterium Engine destroyed. 04856_ XL Autogun Subcomponent destroyed. Map ----- +----------------------------------------------------+ | ???????# """ """ #????????????????????????????? | | ???????# """ """ #????????????????????????????? | | ???????# """ """ #????????????????????????????? | | ???????# #????????????????????????????? | | ???????# """ #????????????????????????????? | | ???????# """ "" #????????????????????????????? | | ???????# """ """#????????????????????????????? | | ???????# R"#????????????????????????????? | | ???????# """#????????????????????????????? | | ???????# #????????????????????????????? | | ???????#######+####+#####!???????????????????????? | | ???????????# !! # ???????????????????????? | | ???????????# ! # ???????????????????????? | | ???????????# + ???????????????????????? | | ???????????#^ # ???????????????????????? | | ???????????#!* # ???????????????????????? | | ???????????#* # ???????????????????????? | | ???????????# u ###+####?????????????????? | | ???????????# """" u #?????????????????? | | ???????????# """" ! # ????????????????? | | ???????????+ """" "T"k + ????????????????? | | ?????????? # ""#?????????????????? | | ????????? # t ==! T #?????????????????? | | ????????? ?? #### %*!! #?????????????????? | | ???????????# ???# %g!H|% %#?????????????????? | | ???????????? ???# %Y@/=%u #?????????????????? | | ???????????# ????# ######## #?????????????????? | | ???????????# ????# ??###?#" #?????????????????? | | ????????????????????# ??????#"h"#????????????????? | | ????????????????????# ??????## "#????????????????? | | ????????????????????#+???????# ##????????????????? | | ?????????????????????????????# ?????????????????? | | ?????????????????????????????# ?????????????????? | | ?????????????????????????????#% ?????????????????? | | ?????????????????????????????# ????????????????? | | ?????????????????????????????? ????????????????? | | ?????????????????????????????? ????????????????? | | ?????????????????????????????? ????????????????? | | ??????????????????????????????### ???????????????? | | ?????????????????????????????? ?? ???????????????? | | ??????????????????????????????#??????????????????? | | ?????????????????????????????????????????????????? | | ?????????????????????????????????????????????????? | | ?????????????????????????????????????????????????? | | ?????????????????????????????????????????????????? | | ?????????????????????????????????????????????????? | | ?????????????????????????????????????????????????? | | ?????????????????????????????????????????????????? | | ?????????????????????????????????????????????????? | | ?????????????????????????????????????????????????? | +----------------------------------------------------+ Best States ------------- Heat Dissipation 48 Energy Generation 18 Energy Capacity 310 Matter Stores 300 Matter Capacity 300 Sight Range 16 Robot Scan Range 14 Terrain Scan Density 10 Armor Coverage 225 Propulsion Shielding 66 Evasion (%) 55 Kinecelleration 30 Item Schematics ----------------- None Robot Schematics ------------------ None Fabricated ------------ Nothing Alien Tech Used ----------------- None Achievements -------------- None Challenges ------------ None Game ------ Seed ArmoredGlidesysCompanion Manual? 0 Play Time 00:24:30 Cumulative 200.8 hours Start 2024.10.31 @ 01:43:34 End 2024.10.31 @ 02:08:42 Sessions 1 Manual Loads 0 Difficulty Rogue Special Mode None Game No. 390 Rogue 390 Adventurer 0 Explorer 0 Win Type - Total 0 Types 0/0/0/0/0/0/0/0/0 Lore% 42 Gallery% 64 Achievement% 48 Wizard Run 0 Options --------- Layout 0 ASCII 0 Keyboard 1 Movement Numpad Keybinds 0 Fullscreen 2 Font 18/X11 Map View 76x50 Zoom Use 0% Tactical HUD 1 Map Filters NONE Filters NONE Steam 1 RUN: acc3403c-73b8-4385-9469-0e3983cd305b